bitfinex-derivatives/quotes_SOLF0:USTF0_20250311
["timestamp","ask_amount","ask_price","bid_price","bid_amount"]
[1741653333114,8.78996474,113.83,113.79,1.75762369]
[1741653333327,8.78996474,113.82,113.77,4.4197]
[1741653333625,8.78996474,113.83,113.77,4.4197]
[1741653333924,11.54736786,113.84,113.77,4.4197]
[1741653334123,17.58246474,113.78,113.76,35.16]
[1741653334326,8.78996474,113.77,113.73,1.11053285]
[1741653334521,8.78996474,113.74,113.62,8.6687]
[1741653334714,46.73329405,113.82,113.62,8.6687]
[1741653334715,8.78996474,113.72,113.62,8.6687]
[1741653334919,46.67635245,113.76,113.62,8.6687]
[1741653335220,8.78996474,113.68,113.52,46.67635245]
[1741653335421,0.05967619,113.69,113.51,289.52]
[1741653335620,46.67635245,113.71,113.57,46.67635245]
[1741653335921,8.78996474,113.66,113.58,6.16357339]
[1741653336133,8.78996474,113.71,113.61,46.67635245]
[1741653336326,11.54736786,113.8,113.64,46.67635245]
[1741653336327,46.67635245,113.77,113.64,46.67635245]
[1741653336626,11.54736786,113.8,113.69,46.67635245]
[1741653336829,8.78996474,113.73,113.7,4.4027]
[1741653337121,20.3373326,113.8,113.7,4.4027]
[1741653337323,46.67635245,113.82,113.7,4.4027]
[1741653337524,8.78996474,113.83,113.72,46.67635245]
[1741653337826,8.78996474,113.84,113.75,46.67635245]
[1741653338017,11.54736786,113.89,113.78,46.67635245]
[1741653338221,11.54736786,113.89,113.81,46.67635245]
[1741653338421,11.54736786,113.89,113.82,4.1184]
[1741653338725,63.48955105,113.93,113.84,46.67635245]
[1741653338922,63.48955105,113.93,113.87,46.67635245]
[1741653339223,51.06495245,114.06,113.9,46.67635245]
[1741653339522,8.78996474,113.97,113.91,4.1184]
[1741653339721,0.05800407,113.99,113.88,48.43258708]
[1741653339923,8.78996474,113.93,113.88,1.75623463]
[1741653340130,46.67635245,113.97,113.93,0.06104614]
[1741653340330,46.67635245,113.94,113.93,0.06104614]
[1741653340528,0.06598569,113.92,113.88,1.75623463]
[1741653340926,4.34,114.07,113.88,2.64]
[1741653341122,46.67635245,114.06,113.93,46.67635245]
[1741653341324,8.78996474,114.05,113.93,46.67635245]
[1741653341522,46.67635245,114.03,113.93,46.67635245]
[1741653341724,8.78996474,113.94,113.89,1.75608042]
[1741653342027,46.67635245,113.94,113.85,61.48]
[1741653342221,4.1007,113.99,113.87,46.67635245]
[1741653342624,8.78996474,113.94,113.85,61.48]
[1741653342825,8.78996474,113.92,113.85,61.48]
[1741653343133,46.67635245,113.94,113.85,61.48]
[1741653343427,8.78996474,113.87,113.85,61.48]
[1741653343625,8.78996474,113.88,113.85,61.48]
[1741653343825,46.67635245,113.94,113.85,61.48]
[1741653344128,8.78996474,113.88,113.85,61.48]
[1741653344329,46.67635245,113.94,113.85,61.48]
[1741653344523,8.85665516,113.91,113.88,0.06325496]
[1741653344923,0.06669042,113.91,113.88,0.06325496]
[1741653345131,8.78996474,113.89,113.88,0.06325496]
[1741653345323,55.46631719,113.89,113.85,61.48]
[1741653345523,8.78996474,113.88,113.85,61.48]
[1741653345829,289.64,113.97,113.85,61.48]
[1741653345830,8.7777,113.97,113.85,116.94315245]
[1741653346130,8.78996474,113.89,113.85,61.48]
[1741653346426,8.78996474,113.92,113.85,61.48]
[1741653346626,0.06502976,113.88,113.86,0.06361616]
[1741653347129,8.78996474,113.87,113.86,0.06361616]
[1741653347321,0.06502976,113.88,113.86,0.06361616]
[1741653348731,4.1618,113.99,113.86,2.70361616]
[1741653349023,4.1618,113.99,113.85,351.16]
[1741653349024,8.78996474,113.92,113.85,351.16]
[1741653349430,8.78996474,113.9,113.85,61.48]
[1741653349723,8.78996474,113.91,113.85,61.48]
[1741653349919,8.78996474,113.89,113.86,0.0555352]
[1741653350118,0.06054427,113.89,113.86,0.0555352]
[1741653350324,8.78996474,113.87,113.85,61.48]
[1741653350524,0.06054427,113.89,113.85,61.48]
[1741653350930,8.78996474,113.87,113.85,61.48]
[1741653351330,0.06054427,113.89,113.85,61.48]
[1741653351723,0.06054427,113.89,113.85,61.54016414]
[1741653352627,46.73689672,113.89,113.85,61.54016414]
[1741653352929,8.78996474,113.86,113.85,61.54016414]
[1741653353121,55.46631719,113.86,113.81,4.21]
[1741653353322,8.78996474,113.82,113.81,4.21]
[1741653353528,8.78996474,113.82,113.71,4.3249]
[1741653353727,46.67635245,113.83,113.71,12.5525]
[1741653353923,51.07885245,113.88,113.73,46.67635245]
[1741653354136,8.78996474,113.84,113.74,1.75839634]
[1741653354325,8.78996474,113.81,113.74,1.75839634]
[1741653354531,8.78996474,113.85,113.74,1.75839634]
[1741653354732,0.06634853,113.79,113.76,0.06067901]
[1741653354933,8.7866,113.86,113.76,289.80067901]
[1741653355135,8.78996474,113.86,113.76,289.74]
[1741653355430,8.7907,113.8,113.74,1.75839634]
[1741653355640,8.78996474,113.79,113.74,1.75839634]
[1741653355931,8.78996474,113.85,113.74,1.75839634]
[1741653356138,46.67635245,113.91,113.79,46.67635245]
[1741653356434,102.8810802,113.92,113.8,14.2894]
[1741653356639,0.05786643,113.86,113.82,46.67635245]
[1741653356840,94.09111546,113.92,113.83,289.8]
[1741653357034,94.09111546,113.92,113.86,46.67635245]
[1741653357230,94.09111546,113.92,113.87,4.1742]
[1741653357435,5.26746399,113.92,113.87,4.1742]
[1741653357935,8.78996474,113.92,113.84,1.75685172]
[1741653358135,8.78996474,113.88,113.86,14.87]
[1741653358438,8.78996474,113.88,113.84,1.75685172]
[1741653358439,55.46631719,113.87,113.81,4.0872]
[1741653358634,64.25171719,113.87,113.8,1.65]
[1741653358939,8.78996474,113.84,113.8,1.65]
[1741653359441,8.78996474,113.81,113.8,1.65]
[1741653359740,8.78996474,113.81,113.74,4.0872]
[1741653359941,0.05757807,113.83,113.79,0.06696088]
[1741653360136,55.27745245,113.94,113.8,336.43635245]
[1741653360435,55.27745245,113.94,113.79,0.06696088]
[1741653360436,46.67635245,113.97,113.82,46.67635245]
[1741653360639,142.57306965,113.89,113.85,46.67635245]
[1741653360833,142.57306965,113.89,113.82,46.67635245]
[1741653361138,142.57306965,113.89,113.83,1.75700606]
[1741653361339,0.06301105,113.87,113.84,0.06658375]
[1741653361640,8.85297579,113.87,113.84,0.06658375]
[1741653361835,8.7868,113.85,113.84,0.06658375]
[1741653362036,55.46631719,113.85,113.7,46.67635245]
[1741653362336,46.67635245,113.79,113.71,4.1817]
[1741653362637,8.78996474,113.76,113.65,8.6011]
[1741653362833,8.78996474,113.73,113.66,4.1817]
[1741653363137,8.78996474,113.7,113.63,289.74]
[1741653363335,0.06597319,113.71,113.63,289.74]
[1741653363336,8.78996474,113.69,113.63,289.74]
[1741653363540,8.78996474,113.65,113.59,4.1817]
[1741653363735,8.78996474,113.67,113.59,4.1817]
[1741653363938,8.78996474,113.67,113.59,50.85805245]
[1741653364145,8.5735,113.75,113.62,46.67635245]
[1741653364329,46.67635245,113.76,113.62,46.67635245]
[1741653364537,4.286,113.8,113.67,0.06354356]
[1741653364538,46.67635245,113.79,113.67,0.06354356]
[1741653364840,8.78996474,113.77,113.68,336.59635245]
[1741653365138,8.5735,113.85,113.68,336.59635245]
[1741653365336,271.07453897,113.74,113.7,46.67635245]
[1741653365542,236.49572845,113.76,113.75,8.7945]
[1741653365743,236.49572845,113.76,113.69,289.92]
[1741653365935,0.06695352,113.73,113.71,0.05825785]
[1741653366131,13.1092,113.87,113.71,0.05825785]
[1741653366335,4.286,113.9,113.77,46.67635245]
[1741653366537,30.77028057,113.91,113.8,46.67635245]
[1741653366743,46.67635245,113.96,113.83,46.67635245]
[1741653366938,8.78996474,113.94,113.85,46.67635245]
[1741653367244,0.06606518,113.91,113.89,46.67635245]
[1741653367545,46.67635245,114.04,113.89,46.67635245]
[1741653367740,88.79522218,114.03,113.92,46.67635245]
[1741653367935,15.19894806,114.02,113.94,46.67635245]
[1741653368242,71.09834161,114.03,113.96,46.67635245]
[1741653368444,71.09834161,114.03,113.98,46.67635245]
[1741653368647,88.87292702,114.07,114.0,46.67635245]
[1741653368848,0.05938844,114.01,114.0,46.67635245]
[1741653369148,52.75996474,114.01,113.99,281.93904917]
[1741653369449,61.53516474,114.0,113.99,161.92679166]
[1741653369943,99.42155245,114.0,113.99,139.57580386]
[1741653370340,8.776,113.99,113.98,0.05526792]
[1741653370536,2.64,113.99,113.87,143.6247247]
[1741653370742,0.06239953,114.01,113.87,143.6247247]
[1741653370743,46.67635245,113.98,113.87,143.6247247]
[1741653370941,46.67635245,114.01,113.88,50.82145245]
[1741653371135,46.67635245,114.03,113.89,1.75608042]
[1741653371339,46.67635245,114.0,113.89,1.75608042]
[1741653371642,46.67635245,113.97,113.88,4.1451]
[1741653371838,46.67635245,114.0,113.88,4.1451]
[1741653371839,0.06597443,113.96,113.93,0.06308843]
[1741653372046,46.74232688,113.96,113.93,0.06308843]
[1741653372244,46.67635245,114.02,113.9,46.67635245]
[1741653372440,50.77225245,114.06,113.91,1.7557721]
[1741653372745,50.77225245,114.06,113.93,46.73387133]
[1741653373049,46.67635245,114.06,113.93,46.67635245]
[1741653373343,46.67635245,114.06,113.91,1.7557721]
[1741653373344,46.67635245,114.0,113.91,1.7557721]
[1741653373547,46.67635245,113.94,113.88,4.1451]
[1741653373849,46.67635245,113.93,113.86,4.0702]
[1741653374151,0.06432559,113.92,113.9,0.06325155]
[1741653374650,46.67635245,113.98,113.88,289.72]
[1741653375143,46.67635245,113.98,113.8,4.3549]
[1741653375144,46.67635245,113.92,113.8,4.3549]
[1741653375348,46.67635245,113.89,113.8,4.3549]
[1741653375751,0.06062904,113.87,113.85,0.06055713]
[1741653376046,101.0,114.1,113.85,0.06055713]
[1741653376350,46.67635245,114.0,113.9,46.67635245]
[1741653376553,46.67635245,114.0,113.89,289.72]
[1741653376753,46.67635245,114.0,113.9,46.67635245]
[1741653377049,46.67635245,113.97,113.86,1.75654312]
[1741653377251,0.05950485,113.96,113.94,0.06332065]
[1741653377553,46.67635245,114.0,113.89,4.2938]
[1741653377854,46.67635245,114.03,113.89,4.2938]
[1741653378146,4.4182,114.11,113.97,46.67635245]
[1741653378349,4.4182,114.11,114.0,46.67635245]
[1741653378751,46.67635245,114.12,114.0,46.67635245]
[1741653378946,46.67635245,114.15,114.02,46.67635245]
[1741653379247,4.4182,114.17,114.04,46.67635245]
[1741653379451,483.6,114.28,114.1,46.67635245]
[1741653379755,46.67635245,114.19,114.08,46.67635245]
[1741653380052,46.67635245,114.13,114.02,46.67635245]
[1741653380254,46.67635245,114.11,114.01,295.42493208]
[1741653380755,4.1524,114.16,114.04,46.67635245]
[1741653380952,46.67635245,114.19,114.08,46.67635245]
[1741653381145,46.67635245,114.23,114.12,46.67635245]
[1741653381351,46.67635245,114.25,114.12,46.67635245]
[1741653381547,46.67635245,114.25,114.14,46.67635245]
[1741653381752,46.67635245,114.21,114.13,4.0781]
[1741653381955,46.67635245,114.17,114.09,4.1911]
[1741653382248,46.67635245,114.15,114.02,50.75445245]
[1741653382455,46.67635245,114.17,114.04,46.67635245]
[1741653382646,4.1524,114.2,114.12,0.05732014]
[1741653382848,46.67635245,114.24,114.12,0.05732014]
[1741653383055,289.44,114.27,114.09,51.08805245]
[1741653383248,46.67635245,114.22,114.1,4.1911]
[1741653383451,4.2947,114.28,114.17,0.06719107]
[1741653383752,82.64762925,114.31,114.18,46.67635245]
[1741653383952,82.64762925,114.31,114.2,46.67635245]
[1741653384148,82.64762925,114.31,114.19,8.6206]
[1741653384347,0.06110667,114.25,114.19,8.6206]
[1741653384543,0.06110667,114.25,114.24,0.06086754]
[1741653384956,46.73745912,114.25,114.1,289.44]
[1741653385152,46.73745912,114.25,114.13,8.8895]
[1741653385453,101.0,114.32,114.13,8.8895]
[1741653385658,46.67635245,114.23,114.13,8.8895]
[1741653385860,46.67635245,114.23,114.13,4.4778]
[1741653386058,46.67635245,114.3,114.13,4.4778]
[1741653386059,101.0,114.32,114.13,4.4778]
[1741653386262,46.67635245,114.28,114.16,46.67635245]
[1741653386562,0.06270977,114.24,114.21,0.06481926]
[1741653386863,46.67635245,114.22,114.02,289.28]
[1741653387059,46.67635245,114.19,114.07,13.0981]
[1741653387558,4.1916,114.23,114.01,1.75423208]
[1741653387559,46.67635245,114.16,114.01,1.75423208]
[1741653387757,4.1916,114.15,114.04,46.67635245]
[1741653388158,0.05611362,114.1,114.07,0.06619758]
[1741653388353,46.67635245,114.19,114.07,46.74255003]
[1741653388559,4.3099,114.23,114.1,46.67635245]
[1741653388755,4.3099,114.23,114.11,4.3044]
[1741653389063,4.3099,114.23,114.05,4.4775]
[1741653389064,46.67635245,114.15,114.05,4.4775]
[1741653389259,46.67635245,114.13,114.05,4.4775]
[1741653389460,46.67635245,114.17,114.05,4.4775]
[1741653389655,0.06192174,114.1,114.05,4.4775]
[1741653389856,0.06192174,114.1,114.08,0.05987947]
[1741653390466,8.7683,114.09,114.08,0.05987947]
[1741653390655,0.06192174,114.1,114.08,0.05987947]
[1741653390853,4.3099,114.23,114.1,46.67635245]
[1741653391055,46.67635245,114.26,114.16,46.67635245]
[1741653391255,4.3099,114.29,114.16,46.67635245]
[1741653391463,4.3099,114.29,114.18,46.67635245]
[1741653391659,46.67635245,114.33,114.22,46.67635245]
[1741653391864,46.67635245,114.33,114.21,46.67635245]
[1741653392059,8.7523,114.3,114.23,46.67635245]
[1741653392259,8.7523,114.3,114.23,50.94965245]
[1741653392565,4.3614,114.35,114.23,50.94965245]
[1741653392865,46.67635245,114.34,114.23,50.94965245]
[1741653393061,4.3614,114.35,114.25,46.67635245]
[1741653393262,46.67635245,114.4,114.27,46.67635245]
[1741653393461,4.3614,114.41,114.29,46.73548372]
[1741653393762,390.22,114.48,114.29,46.67635245]
[1741653393968,46.67635245,114.39,114.28,46.67635245]
[1741653394166,8.7494,114.34,114.28,46.67635245]
[1741653394466,46.67635245,114.37,114.26,4.1417]
[1741653394671,8.7522,114.3,114.29,0.06419531]
[1741653394868,0.05963626,114.31,114.29,0.06419531]
[1741653395168,46.67635245,114.41,114.3,46.67635245]
[1741653395363,46.67635245,114.43,114.3,46.67635245]
[1741653395565,46.67635245,114.41,114.3,4.4976]
[1741653395757,8.746,114.39,114.31,46.67635245]
[1741653395962,46.67635245,114.44,114.34,46.67635245]
[1741653396268,4.3614,114.47,114.34,46.67635245]
[1741653396463,4.3614,114.47,114.33,289.06]
[1741653396671,46.67635245,114.46,114.32,4.1981]
[1741653396968,0.06648299,114.41,114.39,1e-05]
[1741653397368,50.77625245,114.44,114.32,4.1981]
[1741653397664,46.67635245,114.54,114.34,46.67635245]
[1741653397962,4.091,114.53,114.37,46.67635245]
[1741653398168,46.67635245,114.51,114.4,46.67635245]
[1741653398370,8.7392,114.47,114.4,55.48754337]
[1741653398558,4.091,114.53,114.4,46.74314337]
[1741653398762,46.67635245,114.54,114.43,46.67635245]
[1741653398959,46.67635245,114.57,114.43,46.67635245]
[1741653399164,4.091,114.59,114.46,46.67635245]
[1741653399363,50.76735245,114.59,114.46,335.55635245]
[1741653399562,50.76735245,114.59,114.47,4.3425]
[1741653399766,46.67635245,114.66,114.52,46.67635245]
[1741653400061,4.091,114.65,114.48,48.42338249]
[1741653400260,46.67635245,114.59,114.48,48.42338249]
[1741653400463,46.67635245,114.6,114.48,46.67635245]
[1741653400663,4.091,114.65,114.54,46.67635245]
[1741653400864,46.67635245,114.7,114.58,46.67635245]
[1741653401064,0.05766257,114.61,114.58,46.74217842]
[1741653401367,46.67635245,114.69,114.58,46.74217842]
[1741653401566,46.67635245,114.72,114.58,46.67635245]
[1741653401963,8.7273,114.63,114.58,46.67635245]
[1741653402165,4.3362,114.73,114.55,13.1097]
[1741653402368,46.67635245,114.69,114.57,46.67635245]
[1741653402569,0.05702837,114.62,114.59,0.06536354]
[1741653402765,0.05702837,114.62,114.56,46.67635245]
[1741653402965,46.67635245,114.66,114.55,8.8562]
[1741653403163,46.67635245,114.66,114.54,288.68]
[1741653403164,46.67635245,114.63,114.49,4.2535]
[1741653403468,46.73836386,114.6,114.49,4.2535]
[1741653403663,46.67635245,114.6,114.48,52.83888249]
[1741653404563,0.06020317,114.55,114.53,0.05628036]
[1741653405068,8.737,114.5,114.48,1.74703004]
[1741653405267,0.06570437,114.55,114.53,0.06671426]
[1741653405464,4.40800437,114.55,114.48,1.74703004]
[1741653405659,0.06570437,114.55,114.48,1.74703004]
[1741653405870,46.67635245,114.6,114.48,1.74703004]
[1741653406073,46.67635245,114.57,114.48,1.74703004]
[1741653406362,46.67635245,114.63,114.51,46.67635245]
[1741653406567,4.3423,114.65,114.51,46.67635245]
[1741653406867,4.3423,114.65,114.51,49.35434361]
[1741653407069,4.3423,114.65,114.52,8.5822]
[1741653407269,4.3423,114.65,114.54,46.67635245]
[1741653407663,4.362,114.7,114.54,46.67635245]
[1741653407865,46.67635245,114.66,114.54,46.67635245]
[1741653408267,0.05886436,114.61,114.58,46.73883006]
[1741653408566,4.362,114.7,114.6,46.67635245]
[1741653408765,8.7224,114.69,114.63,46.67635245]
[1741653408970,46.67635245,114.7,114.6,46.67635245]
[1741653409167,46.67635245,114.7,114.59,4.4327]
[1741653409371,4.362,114.69,114.57,288.26]
[1741653409674,46.67635245,114.68,114.57,288.26]
[1741653409966,0.06541392,114.66,114.54,46.67635245]
[1741653410172,46.67635245,114.68,114.54,46.67635245]
[1741653410672,4.362,114.69,114.54,46.67635245]
[1741653410868,46.67635245,114.68,114.54,46.67635245]
[1741653411170,46.67635245,114.74,114.6,46.7331084]
[1741653411372,4.321,114.77,114.66,46.67635245]
[1741653411968,4.321,114.77,114.69,46.67635245]
[1741653412170,46.67635245,114.79,114.69,46.67635245]
[1741653412372,4.321,114.82,114.69,46.67635245]
[1741653412676,0.05636824,114.74,114.72,0.05627062]
[1741653412870,46.67635245,114.8,114.72,0.05627062]
[1741653413173,46.67635245,114.81,114.7,8.4346]
[1741653413570,8.7135,114.81,114.73,55.39545245]
[1741653413768,46.67635245,114.84,114.73,46.67635245]
[1741653414073,46.67635245,114.81,114.71,1.74352715]
[1741653414270,46.67635245,114.81,114.7,8.4346]
[1741653414670,46.67635245,114.81,114.75,0.06451679]
[1741653414874,93.3527049,114.78,114.61,8.4255]
[1741653415075,46.67635245,114.73,114.61,8.4255]
[1741653415375,101.0,114.84,114.66,46.67635245]
[1741653415578,46.67635245,114.82,114.69,46.67635245]
[1741653415976,46.67635245,114.85,114.72,46.67635245]
[1741653416279,0.0604908,114.77,114.74,0.05554932]
[1741653416579,46.67635245,114.85,114.72,46.67635245]
[1741653416977,0.05719992,114.77,114.74,0.05663068]
[1741653417379,46.67635245,114.82,114.7,5.81077916]
[1741653417580,46.67635245,114.84,114.71,46.67635245]
[1741653417876,46.73545358,114.77,114.7,1.74367916]
[1741653418080,0.05910113,114.77,114.7,1.74367916]
[1741653418275,46.67635245,114.81,114.68,46.67635245]
[1741653418475,287.96,114.85,114.66,46.67635245]
[1741653418678,46.67635245,114.79,114.66,46.67635245]
[1741653418878,46.67635245,114.76,114.66,46.67635245]
[1741653419181,0.06344487,114.74,114.64,8.6593]
[1741653419678,46.67635245,114.79,114.66,46.67635245]
[1741653419975,46.67635245,114.76,114.66,46.67635245]
[1741653420181,4.1229,114.75,114.64,4.4186]
[1741653420380,46.67635245,114.73,114.61,4.2967]
[1741653420581,46.67635245,114.7,114.61,4.2967]
[1741653420784,0.06350728,114.71,114.57,46.67635245]
[1741653420985,46.67635245,114.68,114.56,4.2967]
[1741653421177,46.67635245,114.72,114.56,4.2967]
[1741653421373,46.67635245,114.72,114.59,46.67635245]
[1741653421575,46.67635245,114.69,114.56,4.2967]
[1741653421781,4.119,114.68,114.57,46.67635245]
[1741653422083,0.05830744,114.67,114.64,3.456e-05]
[1741653422285,50.79535245,114.68,114.56,4.2967]
[1741653422485,8.7273,114.63,114.56,4.2967]
[1741653422683,46.67635245,114.72,114.61,46.67635245]
[1741653422883,4.119,114.75,114.64,46.67635245]
[1741653423089,0.0895,114.83,114.64,46.67635245]
[1741653423090,101.0,114.93,114.73,46.67635245]
[1741653423281,46.67635245,114.91,114.77,46.67635245]
[1741653423590,46.67635245,114.85,114.72,46.67635245]
[1741653423784,46.67635245,114.84,114.69,46.67635245]
[1741653424088,46.67635245,114.81,114.77,0.05677124]
[1741653424383,4.119,114.8,114.66,13.1305]
[1741653424585,53.22327176,114.78,114.6,53.1675565]
[1741653424788,287.68,114.77,114.6,53.1675565]
[1741653424985,53.1675565,114.75,114.6,53.1675565]
[1741653425181,53.1675565,114.72,114.57,53.1675565]
[1741653425382,53.1675565,114.69,114.54,8.8848]
[1741653425585,0.06465202,114.69,114.54,62.0523565]
[1741653425888,53.1675565,114.81,114.63,53.1675565]
[1741653426086,4.1988,114.8,114.66,53.1675565]
[1741653426284,53.1675565,114.87,114.69,53.1675565]
[1741653426476,53.1675565,114.84,114.69,53.1675565]
[1741653426677,287.68,114.84,114.69,53.1675565]
[1741653426885,0.05944654,114.79,114.77,0.06021154]
[1741653427176,101.0,114.83,114.67,293.85263534]
[1741653427486,53.1675565,114.78,114.72,0.05632251]
[1741653427683,105.1988,114.77,114.64,4.2365]
[1741653427888,53.1675565,114.75,114.57,53.1675565]
[1741653428088,53.1675565,114.72,114.57,53.1675565]
[1741653428282,287.64,114.76,114.61,53.1675565]
[1741653428483,53.1675565,114.74,114.58,1.74550532]
[1741653428887,0.0617722,114.67,114.65,0.06430018]
[1741653429288,2.62,114.67,114.56,4.2365]
[1741653429483,340.8075565,114.68,114.56,4.2365]
[1741653429789,53.1675565,114.65,114.5,4.242]
[1741653429984,287.64,114.65,114.5,12.8905]
[1741653430190,4.2734,114.66,114.5,12.8905]
[1741653430393,4.2734,114.66,114.51,53.1675565]
[1741653430592,287.76,114.69,114.54,53.1675565]
[1741653430886,4.2734,114.71,114.57,53.1675565]
[1741653431088,53.1675565,114.82,114.63,53.1675565]
[1741653431288,4.4119,114.81,114.69,53.1675565]
[1741653431592,4.4119,114.81,114.7,4.4532]
[1741653431799,0.05595761,114.76,114.71,0.05758305]
[1741653432087,95.92340481,114.87,114.7,4.4532]
[1741653432293,4.4119,114.85,114.72,53.23451833]
[1741653432488,101.0,114.84,114.72,0.06696183]
[1741653432692,53.1675565,114.82,114.65,4.2991]
[1741653432896,53.1675565,114.79,114.64,4.242]
[1741653433087,53.1675565,114.76,114.6,53.1675565]
[1741653433287,0.06023414,114.73,114.57,53.1675565]
[1741653433495,340.90779064,114.73,114.57,53.1675565]
[1741653433790,287.68,114.73,114.57,53.1675565]
[1741653434095,101.0,114.72,114.54,57.4666565]
[1741653434290,340.8475565,114.73,114.57,53.1675565]
[1741653434487,101.0,114.76,114.63,53.1675565]
[1741653434692,101.0,114.8,114.72,53.1675565]
[1741653434891,53.1675565,114.85,114.7,287.68]
[1741653435095,53.1675565,114.85,114.66,53.1675565]
[1741653435292,0.05794386,114.79,114.66,53.1675565]
[1741653435592,101.0,114.84,114.74,0.06460236]
[1741653435991,0.06205917,114.74,114.69,53.1675565]
[1741653436494,154.1675565,114.82,114.67,1.74413534]
[1741653436685,0.06233527,114.73,114.7,0.06674959]
[1741653436885,4.3735,114.83,114.68,8.7226]
[1741653437084,4.3735,114.83,114.69,53.1675565]
[1741653437291,340.8275565,114.88,114.72,53.1675565]
[1741653437498,4.3563,114.87,114.75,53.1675565]
[1741653437693,47.69781613,114.96,114.78,53.1675565]
[1741653437890,105.3563,114.95,114.78,53.1675565]
[1741653438091,154.1675565,114.94,114.76,6.00576751]
[1741653438294,53.1675565,114.91,114.76,6.00576751]
[1741653438487,8.7115,114.84,114.76,6.00576751]
[1741653438702,0.06261192,114.86,114.76,6.00576751]
[1741653438991,2.62,114.86,114.73,4.3998]
[1741653439187,345.1238565,114.85,114.73,4.3998]
[1741653439390,345.1238565,114.85,114.66,8.6944]
[1741653439391,53.1675565,114.8,114.66,8.6944]
[1741653439600,53.1675565,114.83,114.67,4.0731]
[1741653439898,0.05989917,114.76,114.74,0.0596013]
[1741653440099,0.05989917,114.76,114.67,4.0731]
[1741653440291,0.05989917,114.76,114.29,26.2569]
[1741653440292,388.6,114.75,114.46,238.84946751]
[1741653440497,53.1675565,114.58,114.46,238.84946751]
[1741653440799,53.1675565,114.55,114.43,238.84946751]
[1741653441199,53.1675565,114.52,114.43,238.84946751]
[1741653441596,8.7415,114.44,114.43,238.84946751]
[1741653441898,8.7415,114.44,114.43,197.19043057]
[1741653442092,287.6,114.54,114.43,197.19043057]
[1741653442295,287.82,114.53,114.43,197.19043057]
[1741653442800,8.7415,114.44,114.43,182.10583057]
[1741653443003,287.82,114.44,114.32,8.7482]
[1741653443491,59.08306556,114.5,114.37,0.06269721]
[1741653443695,287.82,114.49,114.37,0.06269721]
[1741653443891,287.82,114.49,114.32,8.7482]
[1741653444395,287.82,114.49,114.33,1.74932213]
[1741653444789,11.59213933,114.47,114.33,1.74932213]
[1741653444990,0.06299602,114.42,114.4,0.00041396]
[1741653445391,347.08306556,114.46,114.32,8.7482]
[1741653446192,347.08306556,114.46,114.38,0.06339354]
[1741653446401,0.06536016,114.4,114.38,0.06339354]
[1741653446603,347.08306556,114.46,114.32,8.7482]
[1741653446799,0.06015375,114.4,114.38,0.0566502]
[1741653446999,11.59213933,114.47,114.38,0.0566502]
[1741653447200,11.59213933,114.47,114.35,59.08306556]
[1741653447403,20.33203933,114.47,114.36,8.7475]
[1741653447703,11.59213933,114.47,114.34,4.3265]
[1741653447891,11.59213933,114.47,114.35,1.74901617]
[1741653448097,288.0,114.52,114.35,1.74901617]
[1741653448505,0.05833606,114.42,114.4,0.05925979]
[1741653448802,288.0,114.52,114.35,1.74901617]
[1741653449003,0.05889104,114.42,114.4,0.05771456]
[1741653449214,288.0,114.52,114.4,0.05771456]
[1741653449416,11.59213933,114.54,114.38,288.12]
[1741653449609,8.7346,114.53,114.38,288.12]
[1741653449809,11.59213933,114.54,114.39,59.08306556]
[1741653450114,347.20306556,114.58,114.4,1.74825174]
[1741653450307,347.20306556,114.58,114.41,4.2446]
[1741653450509,0.05686286,114.48,114.45,0.05705569]
[1741653450706,347.20306556,114.58,114.42,4.3529]
[1741653450912,0.06363188,114.48,114.45,0.06563597]
[1741653451309,59.08306556,114.54,114.42,4.3529]
[1741653451510,0.05983052,114.48,114.45,0.06097192]
[1741653451917,347.22306556,114.5,114.42,4.3529]
[1741653452111,0.05602746,114.48,114.45,0.05984305]
[1741653452316,0.05602746,114.48,114.42,4.3529]
[1741653452713,0.05602746,114.48,114.41,4.2446]
[1741653452913,0.05602746,114.48,114.35,4.3529]
[1741653453114,347.22306556,114.5,114.35,8.4315]
[1741653453417,59.08306556,114.54,114.36,1.74886323]
[1741653453612,335.70341613,114.57,114.41,0.06077898]
[1741653453826,59.08306556,114.54,114.41,0.06077898]
[1741653454115,59.08306556,114.54,114.36,1.74886323]
[1741653454513,8.736,114.52,114.43,8.7419]
[1741653454713,59.08306556,114.54,114.44,8.5014]
[1741653454916,59.08306556,114.54,114.37,8.5014]
[1741653455118,0.06036715,114.49,114.46,0.06706429]
[1741653455310,59.08306556,114.54,114.46,0.06706429]